[Event "Saint Louis Super Swiss 2023"]
[Site "Saint Louis"]
[Date "2023.03.14"]
[Round "4.3"]
[White "Bruzon Batista, Lazaro"]
[Black "Dudin, Gleb"]
[Result "1-0"]
[ECO "A07"]
[WhiteElo "2610"]
[BlackElo "2469"]
[Annotator "TA"]
[PlyCount "87"]
[EventDate "2023.03.12"]
[EventType "swiss"]
[EventCountry "USA"]
[SourceTitle "playchess.com"]
[Source "ChessBase"]
[SourceQuality "1"]
[TimeControl "5400+30"]

{[%evp 9,87,21,29,29,14,0,17,0,-14,-13,0,7,18,14,53,27,28,27,31,0,27,29,18,16,28,14,45,35,41,22,53,20,63,33,42,27,85,9,30,20,36,35,38,27,71,0,0,5,0,0,7,8,8,12,46,25,231,214,327,288,307,318,311,292,509,491,684,630,625,602,550,432,408,393,522,450,29982,29983,29985,29986]} 1. Nf3 {[%emt 0:08:46]} d5 {[%emt 0:00:20]} 2. g3 {[%emt 0:00:11]} Bg4 {[%emt 0:00:48]} 3. Bg2 {[%emt 0:00:50]} c6 {[%emt 0:00:15]} 4. O-O {[%emt 0:01:08]} e6 {[%emt 0:00:09]} 5. h3 {[%emt 0:01:30]} Bh5 {[%emt 0:00:36] [#]} 6. c4 $1 {[%emt 0:01:55] A07: Réti Opening: New York and Capablanca Systems.} Nf6 {[%emt 0:02:38]} 7. d3 {[%emt 0:03:15]} Bd6 {[%emt 0:02:32]} 8. Be3 $5 {[%emt 0:19:03][%mdl 4] [#] The position is equal. Leaves trodden paths.} O-O $146 {[%emt 0:13:27]} ({Predecessor:} 8... Nbd7 9. Qc2 O-O 10. a3 e5 11. Nh4 d4 12. Bc1 Re8 13. b4 a5 14. c5 Bf8 15. Ra2 Nd5 16. Rb2 axb4 17. axb4 {0-1 Kadletz,K (2007)-Todor,R (2167) Niederoesterreich Landesliga 0910 2009 (1)}) 9. Qb3 {[%emt 0:00:21]} Qe7 {[%emt 0:02:54]} 10. Nc3 {[%emt 0:07:38]} Na6 {[%emt 0:04:30]} 11. d4 {[%emt 0:05:53]} Rac8 {[%emt 0:10:42]} 12. Rac1 {[%emt 0:03:53]} (12. c5 $5 {[%cal Rc5d6]} Bb8 13. Bg5 $14) 12... h6 {[%emt 0:04:31]} 13. Ne5 {[%emt 0:06:55]} Nc5 {[%emt 0:14:08][%mdl 64] Deflection} 14. Qd1 {[%emt 0:05:44]} Ncd7 {[%emt 0:05:50]} 15. f4 {[%emt 0:04:20]} dxc4 {[%emt 0:03:38]} 16. Nxc4 {[%emt 0:02:27]} Bb4 {[%emt 0:03:20]} 17. Bf2 {[%emt 0:08:59]} Rfd8 {[%emt 0:01:35]} 18. a3 {[%emt 0:01:04]} Bxc3 {[%emt 0:01:10]} 19. Rxc3 {[%emt 0:00:03]} Nd5 {[%emt 0:07:22]} 20. Rd3 {[%emt 0:04:48]} c5 {[%emt 0:05:11]} 21. dxc5 {[%emt 0:03:34]} Nxc5 {[%emt 0:03:10][%cal Bd7c5,Bc5a4,Ba4b2][%mdl 32]} 22. Rd4 {[%emt 0:00:04]} b5 {[%emt 0:04:37]} (22... f5 $11) 23. Nd2 {[%emt 0:04:16]} (23. Na5 $16) 23... f6 {[%emt 0:02:01]} 24. Re1 {[%emt 0:03:54]} Bf7 {[%emt 0:01:17]} 25. Nb3 {[%emt 0:00:47] Threatens to win with Nxc5.} Na4 {[%emt 0:03:42]} 26. Rd2 {[%emt 0:00:02][%cal Of4f5,Bd4d2,Bd2c2,Bc2b2,Bb2b3][%mdl 32]} Ndb6 {[%emt 0:01:51] [#]} 27. Nd4 {[%emt 0:00:10]} (27. Rxd8+ $1 $16 Qxd8 28. Qxd8+ Rxd8 29. Nd4) 27... Qe8 $11 {[%emt 0:00:23] Strongly threatening ...Nc4.} 28. Bb7 {[%emt 0:02:06]} Nc4 {[%emt 0:01:22]} 29. Bxc8 {[%emt 0:00:07]} Rxc8 {[%emt 0:00:28]} 30. Rc2 {[%emt 0:00:23] aiming for b3.} Naxb2 {[%emt 0:00:26]} 31. Qb1 {[%emt 0:01:05]} e5 {[%emt 0:00:34]} 32. fxe5 {[%emt 0:00:09]} Bg6 $2 {[%emt 0:00:30] This costs Black the game.} (32... fxe5 $11 {and Black stays safe.} 33. Nf5 Bg6) 33. exf6 $1 $18 {[%emt 0:00:54]} Rd8 {[%emt 0:00:30] [#]} (33... Qd7 $142 34. fxg7 (34. e4 Nd3 $16) 34... Be4) 34. Qc1 $1 {[%emt 0:00:38]} Rxd4 {[%emt 0:00:31]} (34... Bxc2 35. Qxc2) 35. Rxb2 {[%emt 0:00:23]} Rd5 {[%emt 0:00:30]} 36. Rb3 {[%emt 0:00:28]} Rf5 $2 {[%emt 0:00:31]} (36... Be4 37. fxg7 (37. Bxa7 Qd7 $15) 37... Kxg7) 37. fxg7 {[%emt 0:00:15]} ({Not} 37. Bxa7 Qd7 38. Bf2 Rxf6 $18) 37... Qe4 {[%emt 0:00:30]} 38. Rf3 {[%emt 0:00:41]} Kxg7 {[%emt 0:00:30]} 39. Qc3+ {[%emt 0:00:19]} Kh7 {[%emt 0:00:26]} 40. Rxf5 {[%emt 0:00:25]} Bxf5 {[%emt 0:00:31]} 41. g4 {[%emt 0:00:06]} ({Much less strong is} 41. Bxa7 Bxh3 42. Qf3 Bf5 $18) 41... Bg6 {[%emt 0:00:33]} 42. Qf6 {[%emt 0:00:54] White threatens Bd4 and mate.} Ne5 {[%emt 0:00:29]} (42... Ne3 $18 43. Qf3 Nc2) 43. Rc1 {[%emt 0:01:01]} Bf7 {[%emt 0:00:31]} 44. Rc8 {[%emt 0:00:21] Weighted Error Value: White=0.20 (precise) /Black=0.54} 1-0

[Event "Saint Louis Super Swiss 2023"]
[Site "Saint Louis"]
[Date "2023.03.16"]
[Round "4.4"]
[White "Quesada Perez, Yasser"]
[Black "Grabinsky, Aaron"]
[Result "1-0"]
[ECO "B15"]
[WhiteElo "2604"]
[BlackElo "2405"]
[Annotator "TA"]
[PlyCount "113"]
[EventDate "2023.03.12"]
[EventType "swiss"]
[EventCountry "USA"]
[TimeControl "5400+30"]

{[%evp 17,113,14,27,24,33,17,17,0,31,27,53,42,97,107,80,8,33,20,16,25,25,0,0,-66,0,-39,-14,-78,-35,-33,-61,-62,-25,-58,-26,-37,0,-36,-23,-16,0,0,0,0,0,0,10,16,0,0,373,384,364,381,517,504,449,448,626,606,580,455,430,400,705,695,685,626,701,603,998,954,872,790,781,706,643,612,490,398,681,666,642,605,930,927,946,658,911,931,919,715,12840,12839,12845,12846,12846,12845]} 1. e4 {[%emt 0:08:48]} c6 {[%emt 0:00:07]} 2. d4 {[%emt 0:00:13]} d5 {[%emt 0:00:05]} 3. Nc3 {[%emt 0:00:06]} g6 {[%emt 0:00:17]} 4. h3 {[%emt 0:00:27]} dxe4 {[%emt 0:00:16]} 5. Nxe4 {[%emt 0:00:06]} Bg7 {[%emt 0:00:07]} 6. Nf3 {[%emt 0:00:05]} Nf6 {[%emt 0:00:20]} 7. Nxf6+ {[%emt 0:04:37]} exf6 {[%emt 0:00:13]} 8. Bc4 {[%emt 0:00:36] The main line 8.Bc4 scores better than 8.Bd3.} O-O {[%emt 0:00:15]} 9. O-O {[%emt 0:00:03]} Nd7 {[%emt 0:00:47]} 10. Bb3 {[%emt 0:01:48] B15: Caro-Kann: 3 Nc3: 3...g6 and 3...dxe4 4 Nxe4 Nf6 5 Nxf6+ exf6.} Re8 {[%emt 0:01:46]} 11. Be3 {[%emt 0:05:29]} Nb6 {[%emt 0:07:52]} 12. c4 {[%emt 0:00:05] [#] The position is equal.} Be6 $146 {[%emt 0:00:36]} ({Predecessor:} 12... Bf5 13. a4 a5 14. d5 cxd5 15. cxd5 Bf8 16. Nd4 Bd7 17. Qf3 Nc8 18. Rad1 Nd6 {½-½ Foygel,I (2310)-Godes,D URS-ch47 Otborchny 1979}) 13. Rc1 {[%emt 0:00:28]} Qd7 {[%emt 0:02:23]} 14. a4 {[%emt 0:02:25][%cal Ba2a4,Ba4a5][%mdl 32]} Rad8 {[%emt 0:02:07]} ({Better is} 14... Bf8 $14) 15. a5 $16 {[%emt 0:00:54]} Nc8 {[%emt 0:00:33]} 16. Ba4 {[%emt 0:03:29]} ({White should play} 16. d5 $16 cxd5 17. Ba4) 16... b5 $11 {[%emt 0:03:22]} 17. axb6 $1 {[%emt 0:00:06]} Nxb6 {[%emt 0:01:19]} 18. Bb3 {[%emt 0:00:30][%cal Od4d5]} Bf8 {[%emt 0:02:21][%cal Oe6h3]} 19. d5 {[%emt 0:15:30]} Bxh3 {[%emt 0:16:44]} 20. Qd4 {[%emt 0:01:51]} ({White should try} 20. Nd4 $11 cxd5 21. gxh3) 20... c5 {[%emt 0:13:18]} (20... cxd5 $1 $15 21. Qxf6 (21. gxh3 Re4 $17) 21... Qg4) 21. Qh4 {[%emt 0:05:04]} (21. Qxf6 $5 {[%cal Rg2h3]} Bxg2 {[%mdl 64] Decoy} 22. Kxg2 Qg4+ 23. Kh1 Qh3+ 24. Kg1 Qg4+ 25. Kh1 Qh3+ 26. Kg1 Qg4+ 27. Kh1 $11) 21... Bg4 {[%emt 0:07:20]} 22. Nh2 {[%emt 0:00:48]} (22. Qxf6 $11 Bg7 23. Qh4) 22... Be2 {[%emt 0:01:46]} (22... Bf5 $5) 23. Rfe1 {[%emt 0:00:28]} g5 {[%emt 0:01:05]} 24. Qg3 {[%emt 0:02:08]} Bh5 {[%emt 0:03:01]} (24... Bd6 $5 {[%cal Rd6g3]} 25. f4 Bh5 $15) 25. f4 {[%emt 0:01:40]} h6 {[%emt 0:01:28]} 26. Qf2 {[%emt 0:03:04]} Qc8 {[%emt 0:03:42]} 27. Ba2 {[%emt 0:07:12]} (27. Nf1 $5 {[%cal Rf1g3]}) 27... Bg6 {[%emt 0:01:58]} 28. b3 {[%emt 0:00:59]} Bd6 {[%emt 0:01:00][%cal Oe8e3]} 29. Bb1 {[%emt 0:01:29]} Bxb1 {[%emt 0:02:52]} 30. Rxb1 {[%emt 0:00:03]} Re4 {[%emt 0:00:31][%cal Rd6f4]} 31. Qf3 {[%emt 0:06:09]} Rde8 {[%emt 0:06:28][%cal Rd6f4]} 32. Ng4 {[%emt 0:00:05]} (32. fxg5 {is more complex.} Bxh2+ 33. Kxh2 fxg5 34. Bf2) 32... Kg7 {[%emt 0:00:46][%cal Rd6f4]} 33. Nxf6 {[%emt 0:03:31][%cal Bg4f6,Bf6h5,Bh5g7,Bg7f5][%mdl 96] Double Attack} (33. Qh3 h5 34. Nxf6 (34. Qxh5 $2 Rh8 $19) 34... Kxf6 $17) 33... Rxe3 $4 {[%emt 0:04:29][%mdl 8192] [#] Black is now going downhill.} (33... Kxf6 $11 {and Black has nothing to worry.} 34. fxg5+ Kg7) 34. Nh5+ $1 $18 {[%emt 0:00:28]} Kg6 {[%emt 0:00:13]} 35. f5+ {[%emt 0:00:26][%mdl 64] Decoy} (35. Rxe3 Rxe3 36. Qxe3 Qf5 $11) 35... Qxf5 {[%emt 0:01:01]} 36. Qxf5+ {[%emt 0:00:03]} (36. Rxe3 $2 Qxb1+ 37. Kf2 Rxe3 38. Qxe3 Kxh5 $19) 36... Kxf5 {[%emt 0:00:09]} 37. Ng7+ {[%emt 0:00:02]} Ke4 {[%emt 0:03:06]} 38. Rxe3+ {[%emt 0:01:27]} Kxe3 {[%emt 0:00:06]} 39. Re1+ {[%emt 0:00:28]} Kd2 {[%emt 0:01:18]} 40. Rxe8 {[%emt 0:00:05][%mdl 4096] [#] Endgame Black must now prevent Nf5. KRN-KBN} f6 {[%emt 0:01:41]} (40... Bf4 $142 41. Nh5 Bc7) 41. Nf5 {[%emt 0:02:47][%csl LRd6,LRh6]} Be5 {[%emt 0:00:02]} 42. Re7 {[%emt 0:00:36]} Kc3 {[%emt 0:01:39]} 43. Rxa7 {[%emt 0:02:34]} (43. Nxh6 Nc8 44. Re6 Kxb3 $18) 43... Kxb3 {[%emt 0:00:39]} 44. Rb7 {[%emt 0:00:06]} (44. Nxh6 Kxc4 45. d6 Bxd6 $11) 44... Kxc4 {[%emt 0:00:09]} 45. Rxb6 {[%emt 0:00:04] Strongly threatening d6.} Kxd5 {[%emt 0:00:11]} 46. Kf2 {[%emt 0:01:11]} h5 {[%emt 0:00:19]} 47. Rb1 {[%emt 0:02:21]} Ke4 {[%emt 0:01:31]} 48. Ne7 {[%emt 0:02:50]} c4 $2 {[%emt 0:01:05]} (48... Bd4+ 49. Ke2 h4) 49. Ke2 {[%emt 0:00:30] White is clearly winning.} Bf4 {[%emt 0:03:21]} 50. Nc6 {[%emt 0:01:34]} h4 {[%emt 0:01:12]} 51. Rd1 {[%emt 0:00:41]} c3 {[%emt 0:03:30]} 52. Rd4+ {[%emt 0:00:18]} Kf5 {[%emt 0:00:06] aiming for ...c2.} 53. Rc4 {[%emt 0:00:03]} Bd2 {[%emt 0:00:13]} 54. Na7 {[%emt 0:04:52]} g4 {[%emt 0:02:48]} 55. Nb5 {[%emt 0:00:07]} h3 {[%emt 0:00:14]} 56. gxh3 {[%emt 0:00:03]} (56. Nxc3 h2 57. Ne4 (57. Kxd2 $2 h1=Q $19) 57... Be1 $11 {[%mdl 64] Decoy}) 56... gxh3 {[%emt 0:00:20]} 57. Kf3 {[%emt 0:13:56] Weighted Error Value: White=0.21 (precise) /Black=0.52} ({Inferior is} 57. Nxc3 h2 58. Rh4 (58. Kxd2 $2 {perishes.} h1=Q $19) 58... Bxc3 $11) 1-0

[Event "Saint Louis Super Swiss 2023"]
[Site "Saint Louis"]
[Date "2023.03.14"]
[Round "4.6"]
[White "Yoo, Christopher Woojin"]
[Black "Sukandar, Irine Kharisma"]
[Result "1-0"]
[ECO "B50"]
[WhiteElo "2591"]
[BlackElo "2389"]
[Annotator "TA"]
[PlyCount "69"]
[EventDate "2023.03.12"]
[EventType "swiss"]
[EventCountry "USA"]
[SourceTitle "playchess.com"]
[Source "ChessBase"]
[SourceQuality "1"]
[TimeControl "5400+30"]

{[%evp 9,69,7,3,6,9,0,17,0,0,0,7,16,22,18,17,16,69,65,79,79,81,77,96,102,124,133,112,98,217,92,118,113,130,116,302,300,386,386,376,382,341,300,373,381,363,345,362,359,359,343,354,334,338,324,463,466,512,468,931,922,897,878]} 1. e4 {[%emt 0:00:11]} c5 {[%emt 0:00:42]} 2. Nf3 {[%emt 0:00:10]} e6 {[%emt 0:00:54]} 3. b3 {[%emt 0:02:56]} d6 {[%emt 0:02:06]} 4. Bb5+ {[%emt 0:04:22]} Nd7 {[%emt 0:03:10]} 5. O-O {[%emt 0:03:39]} a6 {[%emt 0:02:41]} 6. Bxd7+ {[%emt 0:00:10] B50: Sicilian: 2...d6, Miscellaneous.} Bxd7 {[%emt 0:00:05]} 7. Bb2 {[%emt 0:00:15]} Nf6 {[%emt 0:01:35]} 8. e5 {[%emt 0:01:25] The position is equal.} dxe5 {[%emt 0:00:21]} 9. Nxe5 {[%emt 0:00:08] [#]} Bd6 $146 {[%emt 0:02:09]} ({Predecessor:} 9... Be7 10. Nxd7 Qxd7 11. d3 O-O 12. Qf3 Rfd8 13. Nc3 Rac8 14. Qg3 Qc7 15. f4 Bf8 {0-1 Rivero Gil,C (1195)-Gonzalez Lopez,L (1612) ESP-ch U10 Salobrena 2022 (2)}) 10. d3 {[%emt 0:03:08]} Bxe5 {[%emt 0:01:27]} 11. Bxe5 {[%emt 0:00:09]} Bc6 {[%emt 0:00:06]} 12. Qe2 {[%emt 0:02:14]} h5 {[%emt 0:04:51]} (12... Nd5 $11) 13. Nd2 $14 {[%emt 0:08:28]} Qd5 {[%emt 0:10:00][%csl Gc6][%cal Rd5g2]} 14. f4 {[%emt 0:04:19][%cal Bf2f4,Bf4e5][%mdl 32]} Ng4 {[%emt 0:00:52]} 15. Nc4 {[%emt 0:03:03] aiming for Nb6.} ({Reject} 15. Bxg7 Rg8 16. Bb2 Nxh2 $11) (15. c4 Qd7 $11) 15... Nxe5 {[%emt 0:07:36]} 16. fxe5 {[%emt 0:04:23] Nd6+ would be deadly.} Ke7 {[%emt 0:05:15]} 17. Rf4 {[%emt 0:05:19] Black must now prevent Nb6.} ({Of course not} 17. Qf2 $6 Qd4 $11) 17... Raf8 {[%emt 0:01:27]} 18. Re1 {[%emt 0:08:17]} (18. Rd1 {looks sharper.} f5 19. d4 g5 20. Rf2) 18... Rh6 {[%emt 0:08:00]} (18... f5 $16) 19. Ne3 {[%emt 0:04:49]} (19. Qf2 $1 $18 {has better winning chances.}) 19... Qd7 {[%emt 0:03:23]} 20. Qf2 {[%emt 0:10:18] And now Nc4 would win. White is more active.} f5 {[%emt 0:09:04]} 21. Nc4 {[%emt 0:00:54]} Qd5 $2 {[%emt 0:04:49] [#] Black cannot hold the game after this.} (21... Kf7 $16 {keeps fighting.}) 22. Qg3 $1 $18 {[%emt 0:03:47]} Rg8 {[%emt 0:07:05] [#]} 23. Qg5+ $1 {[%emt 0:02:13]} ({Stronger than} 23. Nb6 Qd8 24. Qg5+ Ke8 25. Qxd8+ Kxd8 $11) 23... Ke8 {[%emt 0:00:42]} 24. Nd6+ {[%emt 0:07:01]} Kd7 {[%emt 0:00:06]} 25. Re3 {[%emt 0:00:29]} Kc7 {[%emt 0:08:59]} 26. c4 {[%emt 0:02:36][%mdl 64] Trapped Piece} Qxg2+ {[%emt 0:00:06]} 27. Qxg2 {[%emt 0:00:04]} Bxg2 {[%emt 0:00:05]} 28. Kxg2 {[%emt 0:00:04]} g5 {[%emt 0:00:27]} 29. Rf1 {[%emt 0:00:07]} h4 {[%emt 0:01:40] [#]} 30. b4 $1 {[%emt 0:02:03][%mdl 64] Deflection} cxb4 {[%emt 0:00:41]} (30... h3+ 31. Rxh3) 31. d4 {[%emt 0:00:06][%cal Bd3d4,Bd4d5,Bd5d6][%mdl 32]} g4 {[%emt 0:00:30]} (31... h3+ $142 32. Kf2 Rh4) 32. d5 {[%emt 0:00:22] White is clearly winning.} Kd7 {[%emt 0:01:47]} 33. Nxb7 {[%emt 0:01:51]} Ke7 {[%emt 0:00:53]} (33... Rc8 $142 34. Nd6 Rc5 35. dxe6+ {[%mdl 64] Remove Defender} Rxe6 36. Rxf5 Kc7) 34. d6+ {[%emt 0:00:26]} Kd7 {[%emt 0:00:24]} 35. Nc5+ {[%emt 0:00:15] Weighted Error Value: White=0.13 (very precise) /Black=0.45} 1-0

[Event "Saint Louis Super Swiss 2023"]
[Site "Saint Louis"]
[Date "2023.03.16"]
[Round "4.7"]
[White "Escalante Ramirez, Brian Sebasti"]
[Black "Jacobson, Brandon"]
[Result "1/2-1/2"]
[ECO "B53"]
[WhiteElo "2474"]
[BlackElo "2543"]
[Annotator "TA"]
[PlyCount "124"]
[EventDate "2023.03.12"]
[EventType "swiss"]
[EventCountry "USA"]
[TimeControl "5400+30"]

{[%evp 9,124,13,4,0,12,8,11,5,7,0,0,0,0,0,0,0,0,16,15,10,9,12,9,4,0,0,78,65,120,112,112,130,167,60,62,65,73,68,67,72,60,68,73,82,104,95,87,92,84,84,89,89,117,117,127,120,163,87,107,120,152,152,147,140,234,224,231,194,169,8,8,0,0,0,0,0,0,0,0,0,0,0,0,0,0,0,0,0,0,0,0,0,0,0,0,0,0,0,0,0,0,0,0,0,0,0,0,0,0,0,0,0,0,0,0,0,0]} 1. e4 {[%emt 0:00:02]} c5 {[%emt 0:00:36]} 2. Nf3 {[%emt 0:00:03]} d6 {[%emt 0:00:11]} 3. d4 {[%emt 0:00:13]} cxd4 {[%emt 0:00:10]} 4. Qxd4 {[%emt 0:00:03]} Nf6 {[%emt 0:00:59][%cal Bg8f6,Bf6d7,Bd7c5][%mdl 32]} 5. Nc3 {[%emt 0:00:04]} Nc6 {[%emt 0:00:37]} 6. Qd3 {[%emt 0:00:02] B53: Sicilian: 2...d6: Lines with Qxd4.} g6 {[%emt 0:00:57]} 7. Nd5 {[%emt 0:00:02]} Bg7 {[%emt 0:00:07]} 8. c3 {[%emt 0:00:02]} O-O {[%emt 0:00:19]} 9. Be2 {[%emt 0:00:02]} Nd7 {[%emt 0:00:22]} 10. O-O {[%emt 0:00:29]} e6 {[%emt 0:00:25][%cal Od7c5]} 11. Ne3 {[%emt 0:00:05][%cal Bd5e3,Be3f1,Bf1g3][%mdl 32]} Nc5 {[%emt 0:00:05]} 12. Qc2 {[%emt 0:00:02]} f5 {[%emt 0:00:24]} 13. exf5 {[%emt 0:00:02]} gxf5 {[%emt 0:00:07]} 14. Rd1 {[%emt 0:00:02] [#]} Qc7 $146 {[%emt 0:00:40]} ({Predecessor:} 14... f4 15. Nc4 d5 16. b4 Ne4 17. Bb2 Qc7 18. b5 Ne7 19. Bd3 e5 20. Re1 Ng6 21. Bxe4 dxe4 22. Qxe4 {½-½ Gubanov,O (2266)-Baburin,A (2399) Enniscrone Sligo Spring op 2023 (2)}) 15. Nf1 {[%emt 0:00:08]} Kh8 {[%emt 0:05:21]} 16. Ng5 {[%emt 0:06:26]} h6 {[%emt 0:32:25]} 17. Nf3 {[%emt 0:00:04]} Qe7 {[%emt 0:01:26]} (17... d5 $11) 18. Ng3 $16 {[%emt 0:03:44]} f4 {[%emt 0:03:17] [#]} (18... d5 $14) 19. Nh5 $1 {[%emt 0:00:47]} e5 {[%emt 0:01:16]} 20. Qg6 {[%emt 0:01:15][%cal Ob2b4] Hoping for b4! White is more active.} Bf5 {[%emt 0:13:52]} 21. Qxg7+ {[%emt 0:00:21]} (21. Qxd6 $6 Qxd6 22. Rxd6 Rad8 23. Rxd8 Rxd8 $14) (21. Nh4 $1 $18 {[%cal Rh4f5]} Bxg6 22. Nxg6+ Kh7 23. Nxe7 Nxe7 24. Rxd6) 21... Qxg7 $14 {[%emt 0:00:03]} 22. Nxg7 {[%emt 0:00:05]} Kxg7 {[%emt 0:00:04]} 23. Rxd6 {[%emt 0:00:06]} Rad8 {[%emt 0:01:02]} 24. Rxd8 {[%emt 0:01:14]} Rxd8 {[%emt 0:00:02]} 25. b3 {[%emt 0:00:06]} Bg4 {[%emt 0:07:34]} 26. Kf1 {[%emt 0:07:56]} Nd3 {[%emt 0:06:34]} 27. Ne1 {[%emt 0:02:22]} Bxe2+ {[%emt 0:03:13]} 28. Kxe2 {[%emt 0:00:02]} Nxe1 {[%emt 0:00:07]} 29. Kxe1 $16 {[%emt 0:00:09][%mdl 4096] Endgame KRB-KRN} Kf6 {[%emt 0:00:04]} 30. Bb2 {[%emt 0:02:18]} Kf5 {[%emt 0:02:36]} 31. Rd1 {[%emt 0:00:43]} Rxd1+ {[%emt 0:04:50]} 32. Kxd1 {[%emt 0:06:15] KB-KN} e4 {[%emt 0:00:12]} 33. c4 {[%emt 0:16:26]} (33. Bc1 $18) 33... h5 {[%emt 0:11:41]} 34. Kd2 {[%emt 0:02:25]} Ne7 {[%emt 0:01:47]} 35. b4 {[%emt 0:26:57]} Ng6 {[%emt 0:00:22] [#]} 36. g3 {[%emt 0:00:17] Prevents Nh4.} e3+ {[%emt 0:04:03]} (36... h4 $16 {was worth a try.}) 37. fxe3 $18 {[%emt 0:05:29]} fxg3 {[%emt 0:00:07]} 38. hxg3 {[%emt 0:00:02]} Kg4 {[%emt 0:00:05]} 39. Kd3 $2 {[%emt 0:00:02]} ({White should try} 39. c5 $18) 39... Kxg3 $11 {[%emt 0:00:30] White must now prevent ...h4. The position is equal.} 40. Ke4 {[%emt 0:00:01] Strongly threatening c5.} Kf2 {[%emt 0:01:22] And now ...h4 would win.} (40... h4 41. Kf5 Nf8 42. Be5+ Kf2 43. e4 $16) 41. Bd4 {[%emt 0:01:09]} h4 {[%emt 0:00:30]} 42. Bxa7 {[%emt 0:00:08]} Ne5 $1 {[%emt 0:00:03][%mdl 64] Promotion} 43. Bb8 $1 {[%emt 0:09:34]} (43. Kxe5 $2 {is the wrong capture.} h3 44. e4+ Kf3 $19) 43... Nxc4 {[%emt 0:00:03][%cal Ob7b5] ...b5! would be deadly.} 44. a4 {[%emt 0:00:03]} h3 {[%emt 0:00:34]} 45. a5 {[%emt 0:01:20] aiming for Kd3.} Nd2+ $1 {[%emt 0:00:37]} 46. Kd3 {[%emt 0:08:33]} Nf1 {[%emt 0:00:06][%cal Of1g3]} 47. b5 $1 {[%emt 0:00:02]} Ng3 $1 {[%emt 0:00:05]} (47... Nxe3 $2 48. a6 bxa6 49. b6 $18) 48. a6 {[%emt 0:00:14]} bxa6 {[%emt 0:00:23]} 49. b6 {[%emt 0:00:27]} h2 {[%emt 0:00:05]} 50. Bxg3+ {[%emt 0:00:05]} Kxg3 {[%emt 0:00:03] KPP-KPP} 51. b7 {[%emt 0:00:04]} h1=Q {[%emt 0:00:04]} 52. b8=Q+ {[%emt 0:00:06] KQ-KQ} (52. b8=B+ Kf2 53. Be5 Qd1+ 54. Ke4 Qf3+ 55. Kd4 Qxe3+ 56. Kd5 Qd3+ 57. Ke6 Kf3 58. Bh2 Ke4 59. Bc7 Qc3 60. Bh2 Qh3+ 61. Kd6 Qxh2+ 62. Kc6 Qb8 63. Kd7 Kd5 64. Ke7 Qf4 65. Kd8 Kd6 66. Ke8 Qf5 67. Kd8 Qf8#) 52... Kg4 {[%emt 0:02:08]} 53. Qb4+ {[%emt 0:03:34]} Kf5 {[%emt 0:00:42]} 54. Qa5+ {[%emt 0:00:01]} Kg4 {[%emt 0:00:34]} 55. e4 {[%emt 0:00:57]} (55. Qxa6 {leads to mate.} Qf1+ 56. Ke4 Qxa6 57. Kd5 Kf3 58. Ke5 Kxe3 59. Kd5 Qf6 60. Kc5 Ke4 61. Kc4 Qd4+ 62. Kb3 Kd3 63. Ka2 Kc3 64. Ka1 Kc2+ 65. Ka2 Qb2#) 55... Qb1+ {[%emt 0:01:16]} 56. Kd4 {[%emt 0:00:12]} Qb2+ {[%emt 0:00:09]} 57. Kc4 {[%emt 0:00:42]} Qb5+ {[%emt 0:00:22]} 58. Qxb5 {[%emt 0:00:06]} axb5+ {[%emt 0:00:03]} 59. Kd4 {[%emt 0:00:35]} b4 {[%emt 0:00:06]} 60. e5 {[%emt 0:00:09] White threatens e6 and mate.} b3 {[%emt 0:00:05] ( -> ...b2)} 61. Kc3 {[%emt 0:00:03][%cal Oe5e6] e6! would kill now.} Kf5 {[%emt 0:00:10]} 62. Kxb3 {[%emt 0:00:03]} Kxe5 {[%emt 0:00:02] Weighted Error Value: White=0.09 (flawless) /Black=0.09 (flawless)} 1/2-1/2